fUSD/lending_fUSD_20251105
["ID","MTS","AMOUNT","RATE_DAILY","PERIOD"]
[393222924,1762343441461,-500.0,0.00017989,2]
[393222925,1762343441471,-150.0,0.00017989,2]
[393222926,1762343441480,-150.0,0.00017989,2]
[393222927,1762343441489,-150.0,0.00017989,2]
[393222928,1762343441498,-500.0,0.00017989,2]
[393222929,1762343441508,-500.0,0.00017989,2]
[393222930,1762343441518,-2555.38,0.00017989,2]
[393222931,1762343441527,-151.0,0.00017989,2]
[393222932,1762343441536,-151.0,0.00017989,2]
[393222933,1762343441546,-322.6107,0.00017989,2]
[393222934,1762343441555,-174.70420298,0.00017989,2]
[393222935,1762343441565,-500.0,0.00017989,2]
[393222936,1762343441575,-500.0,0.00017989,2]
[393222937,1762343441584,-500.0,0.00017989,2]
[393222938,1762343441594,-500.0,0.00017989,2]
[393222939,1762343441603,-500.0,0.00017989,2]
[393222940,1762343441613,-500.0,0.00017989,2]
[393222941,1762343441623,-500.0,0.00017989,2]
[393222942,1762343441632,-500.0,0.00017989,2]
[393222943,1762343441641,-500.0,0.00017989,2]
[393222944,1762343441651,-500.0,0.00017989,2]
[393222945,1762343441661,-500.0,0.00017989,2]
[393222946,1762343441671,-166.66,0.0001799,2]
[393222947,1762343441680,-53723.94,0.0001799,2]
[393222948,1762343441690,-9999.99,0.0001799,2]
[393222949,1762343441700,-999.99,0.0001799,2]
[393222950,1762343441709,-150.99,0.0001799,2]
[393222951,1762343441718,-9999.99,0.0001799,2]
[393222952,1762343441727,-9999.99,0.0001799,2]
[393222953,1762343441737,-1184.8550871,0.0001799,2]
[393222954,1762343441746,-1184.8550871,0.0001799,2]
[393222955,1762343441765,-1184.8550871,0.0001799,2]
[393222956,1762343441775,-337.92378644,0.00017992,2]
[393222957,1762343441784,-250.0,0.00017992,2]
[393222958,1762343441794,-195.0,0.00017992,2]
[393222959,1762343441803,-1959.43762471,0.00017992,4]
[393222960,1762343441813,-2500.0,0.00017992,2]
[393222961,1762343441823,-151.0,0.00017997,2]
[393222962,1762343441832,-294.35133207,0.00017999,2]
[393222963,1762343441842,-1872.6437228,0.00017999,2]
[393222964,1762343441851,-300.0,0.00017999,2]
[393222965,1762343441860,-666.0,0.00017999,2]
[393222966,1762343441870,-300.0,0.00017999,2]
[393222967,1762343441880,-432.36280577,0.00017999,2]
[393222968,1762343441893,-300.0,0.00017999,2]
[393222969,1762343441903,-666.0,0.00017999,2]
[393222970,1762343441912,-300.0,0.00017999,2]
[393222971,1762343441922,-500.0,0.00017999,2]
[393222972,1762343441932,-500.0,0.00017999,2]
[393222973,1762343441941,-266.17310046,0.00017999,2]
[393222974,1762343441950,-500.0,0.00017999,2]
[393222975,1762343441960,-514.42463678,0.00017999,2]
[393222976,1762343441969,-300.0,0.00017999,2]
[393222977,1762343441979,-300.0,0.00017999,2]
[393222978,1762343441989,-150.0,0.00017999,2]
[393222979,1762343441998,-185.35723879,0.00017999,2]
[393222980,1762343442007,-4378.0,0.00018,2]
[393222981,1762343442017,-3116162.0521605,0.00018,2]
[393222982,1762343442527,-1950.0,0.00018,2]
[393222990,1762343443272,-641.55688958,0.00018,2]
[393222991,1762343443283,-16327.16573643,0.00018,2]
[393222993,1762343443703,-1984637.40589889,0.00018,2]
[393222994,1762343446158,-1322.58,0.00018,2]
[393222995,1762343446171,-324.42749984,0.00018,2]
[393222997,1762343475580,-500.0,0.00016356,2]
[393222998,1762343475609,-1000.0,0.000178,2]
[393222999,1762343475636,-1767.6308,0.000178,2]
[393223000,1762343475668,-500.0,0.00017899,2]
[393223001,1762343475699,-373.35513451,0.00017899,2]
[393223002,1762343475895,-1297.02813098,0.000179,2]
[393223003,1762343478504,-2216.90785825,0.000179,2]
[393223004,1762343478532,-500.0,0.00017973,2]
[393223005,1762343478561,-500.0,0.00017973,2]
[393223006,1762343478588,-507.55313772,0.00017973,2]
[393223007,1762343478616,-150.0,0.00017989,2]
[393223008,1762343478648,-150.0,0.00017989,2]
[393223009,1762343478676,-500.0,0.00017989,2]
[393223010,1762343478706,-451.08800806,0.00017989,2]
[393223011,1762343478819,-48.91199194,0.00017989,2]
[393223013,1762343566612,-438.4632055,0.00016356,2]
[393223014,1762343611864,-61.5367945,0.00016356,2]
[393223015,1762343611894,-216.95,0.00017541,2]
[393223016,1762343611922,-300.0,0.00017799,2]
[393223017,1762343611983,-8843.036411,0.000178,2]
[393223018,1762343626534,-306.65475357,0.00016438,2]
[393223019,1762343629700,-228.23215952,0.00016438,2]
[393223020,1762343636360,-250.4602882,0.00016356,2]
[393223023,1762343656429,-249.5397118,0.00016356,2]
[393223024,1762343656454,-180.66646979,0.00016397,2]
[393223026,1762343660607,-271.48907228,0.00016356,2]
[393223027,1762343662504,-228.51092772,0.00016356,2]
[393223028,1762343662526,-70.29704461,0.00016397,2]
[393223029,1762343664657,-300.77396753,0.00016397,2]
[393223032,1762343742567,-5.37755984,0.00016397,2]
[393223033,1762343742596,-32.41308691,0.00016438,2]
[393223034,1762343742623,-662.97702097,0.00017798,2]
[393223035,1762343742651,-550.0,0.00017799,2]
[393223036,1762343742680,-300.0,0.00017799,2]
[393223037,1762343742708,-1200.0,0.00017799,2]
[393223038,1762343742737,-300.0,0.00017799,2]
[393223039,1762343742869,-3898.47466456,0.000178,2]
[393223052,1762343807716,-411.97479195,0.00016356,2]
[393223056,1762343836402,-88.02520805,0.00016356,2]
[393223057,1762343836423,-106.97479195,0.00016356,2]
[393223058,1762343837929,-180.27972521,0.00016356,2]
[393223059,1762343840108,-193.3250575,0.00016356,2]
[393223071,1762343941583,-19.42042534,0.00016356,2]
[393223072,1762343941606,-300.00827378,0.0001706,2]
[393223077,1762343978963,156.15,8.972e-05,2]
[393223078,1762343981068,-300.0,0.00016356,2]
[393223164,1762344016478,-200.0,0.00016356,2]
[393223165,1762344016511,-47.09124972,0.00016356,2]
[393223168,1762344021723,-383.67767346,0.00016356,2]
[393223171,1762344151978,-69.23107682,0.00016356,2]
[393223172,1762344151999,-379.08381981,0.00016356,2]
[393223173,1762344152022,-365.67096414,0.00016356,2]
[393223174,1762344153991,-33.9665567,0.00016356,2]
[393223175,1762344154014,-161.0334433,0.00016708,2]
[393223176,1762344182103,-177.72900927,0.00016356,2]
[393223177,1762344184202,-188.54130858,0.00016356,2]
[393223178,1762344212155,160.88,0.000155,3]
[393223180,1762344256509,-133.72968215,0.00016356,2]
[393223181,1762344256531,-110.45562898,0.00016708,2]
[393223182,1762344256552,-14.59172622,0.0001706,2]
[393223183,1762344256573,-119.82919683,0.00017178,2]
[393223184,1762344271472,-384.17080317,0.00017178,2]
[393223185,1762344271497,-147.97771803,0.00017503,2]
[393223186,1762344273601,-166.61164153,0.00017503,2]
[393223187,1762344277427,-159.85303996,0.00017503,2]
[393223188,1762344278965,-300.0,0.00017503,2]
[393223189,1762344281219,-229.81438506,0.00017503,2]
[393223190,1762344283216,-160.20263587,0.00017503,2]
[393223191,1762344285970,-288.72888392,0.00017503,2]
[393223192,1762344289403,-188.34524643,0.00017503,2]
[393223193,1762344292251,-314.60852207,0.00017503,2]
[393223194,1762344294396,-185.56081328,0.00017503,2]
[393223195,1762344316559,-304.29711385,0.00017503,2]
[393223196,1762344316581,-110.14207287,0.00017519,2]
[393223197,1762344331494,-426.16223111,0.00017402,2]
[393223198,1762344336173,-178.44666889,0.00017402,2]
[393223199,1762344336196,-121.56580079,0.00017519,2]
[393223201,1762344361486,-257.02561517,0.00016356,2]
[393223202,1762344376513,-204.65525021,0.00016356,2]
[393223203,1762344376533,-153.86998455,0.00016798,2]
[393223204,1762344379692,-164.56674478,0.00016798,2]
[393223205,1762344381307,-214.6380603,0.00016798,2]
[393223206,1762344382806,-310.94964294,0.00016798,2]
[393223207,1762344386543,-239.90964294,0.00016798,2]
[393223208,1762344388780,-260.09035706,0.00016798,2]
[393223209,1762344406465,-250.0,0.00016778,2]
[393223210,1762344408158,-318.55656282,0.00016798,2]
[393223211,1762344411317,-285.52,0.00016798,2]
[393223212,1762344415838,-238.44145489,0.00016798,2]
[393223213,1762344418329,-333.53029762,0.00016798,2]
[393223219,1762344438161,-181.70154507,0.00016798,2]
[393223220,1762344440748,-298.5280202,0.00016798,2]
[393223264,1762344445858,-420.0,0.00016798,2]
[393223265,1762344447367,-222.51052491,0.00016798,2]
[393223266,1762344450059,-201.58481839,0.00016798,2]
[393223267,1762344466958,-166.66,0.00016797,2]
[393223268,1762344468084,-187.2538,0.00016797,2]
[393223269,1762344470859,-165.60681668,0.00016797,2]
[393223270,1762344472753,-167.57980382,0.00016797,2]
[393223271,1762344476684,-494.5147529,0.00016797,2]
[393223272,1762344480869,-18.3848266,0.00016797,2]
[393223273,1762344480890,-523.58823099,0.00016798,2]
[393223274,1762344483542,-296.59601873,0.00016797,2]
[393223275,1762344486752,-3.40398127,0.00016797,2]
[393223276,1762344486780,-167.57980382,0.00016797,2]
[393223277,1762344486804,-189.95051822,0.00016798,2]
[393223278,1762344489496,-195.0,0.00016797,2]
[393223279,1762344489518,-3.6163425,0.00016798,2]
[393223280,1762344491003,-215.12877233,0.00016798,2]
[393223281,1762344493655,-208.32539986,0.00016798,2]
[393223282,1762344495716,-383.69452949,0.00016798,2]
[393223283,1762344498874,-207.43160238,0.00016798,2]
[393223284,1762344500943,-196.64267996,0.00016798,2]
[393223285,1762344502423,-227.12104671,0.00016798,2]
[393223305,1762344632311,-300.0,0.00016797,2]
[393223306,1762344632323,-1200.0,0.00016797,2]
[393223307,1762344632336,-300.0,0.00016797,2]
[393223308,1762344632348,-630.63083125,0.00016798,2]
[393223309,1762344632362,-1868.97794623,0.00016798,2]
[393223310,1762344632376,-11890.35444361,0.00016798,2]
[393223311,1762344632389,-195.0,0.00016921,2]
[393223312,1762344632401,-6726.3280288,0.00016999,2]
[393223313,1762344632413,-250.0,0.00017044,2]
[393223314,1762344632425,-2939.1036424,0.0001729,2]
[393223315,1762344632438,-224.78092263,0.000175,2]
[393223316,1762344632450,-218.29212634,0.00017519,2]
[393223317,1762344632461,-200.0,0.00017591,2]
[393223318,1762344632473,-415.63,0.000176,2]
[393223319,1762344632485,-476.74,0.000176,2]
[393223320,1762344632497,-2446.0,0.00017604,2]
[393223321,1762344632513,-14815.4627671,0.00017612,2]
[393223322,1762344632525,-248.71531821,0.00017614,2]
[393223323,1762344632537,-150.0,0.00017624,2]
[393223324,1762344632550,-2446.0,0.00017625,2]
[393223325,1762344632562,-53723.94,0.00017625,2]
[393223326,1762344632574,-2446.0,0.00017634,2]
[393223327,1762344632588,-150.99,0.00017634,2]
[393223328,1762344632600,-999.99,0.00017634,2]
[393223329,1762344632612,-9999.99,0.00017634,2]
[393223330,1762344632624,-2555.38,0.00017634,2]
[393223331,1762344632637,-9999.99,0.00017634,2]
[393223333,1762344632652,-221.75791629,0.00017636,2]
[393223335,1762344632663,-699.82067501,0.00017665,2]
[393223336,1762344632676,-9999.99,0.00017665,2]
[393223337,1762344632688,-893.58488772,0.00017675,2]
[393223338,1762344632701,-539.37,0.00017689,2]
[393223339,1762344632713,-151.0,0.00017689,2]
[393223340,1762344632724,-151.0,0.00017689,2]
[393223342,1762344632737,-322.6107,0.00017689,2]
[393223343,1762344632748,-151.0,0.00017689,2]
[393223344,1762344632762,-151.0,0.00017689,2]
[393223345,1762344632775,-151.0,0.00017689,2]
[393223346,1762344632787,-151.0,0.00017689,2]
[393223347,1762344632799,-151.0,0.00017689,2]
[393223348,1762344632811,-151.0,0.00017689,2]
[393223349,1762344632823,-151.0,0.00017689,2]
[393223350,1762344632835,-151.0,0.00017689,2]
[393223351,1762344632847,-500.0,0.00017689,2]
[393223352,1762344632860,-151.0,0.00017689,2]
[393223353,1762344632872,-500.0,0.00017689,2]
[393223354,1762344632884,-151.0,0.00017689,2]
[393223355,1762344632896,-500.0,0.00017689,2]
[393223356,1762344632908,-217.78239421,0.00017689,2]
[393223357,1762344632921,-500.0,0.00017689,2]
[393223358,1762344632934,-500.0,0.00017689,2]
[393223359,1762344632946,-500.0,0.00017689,2]
[393223360,1762344632958,-500.0,0.00017689,2]
[393223361,1762344632971,-500.0,0.00017689,2]
[393223362,1762344632984,-500.0,0.00017689,2]
[393223363,1762344632996,-500.0,0.00017689,2]
[393223364,1762344633008,-500.0,0.00017689,2]
[393223365,1762344633020,-507.0,0.00017699,2]
[393223366,1762344633033,-267.73771532,0.000177,2]
[393223367,1762344633044,-2500.0,0.000177,2]
[393223368,1762344633057,-3366.39007705,0.000177,2]
[393223369,1762344633069,-183.9922436,0.000177,2]
[393223370,1762344633081,-1505.60249792,0.000177,2]
[393223371,1762344633094,-1605.0,0.000177,2]
[393223372,1762344633106,-1000.0,0.000177,2]
[393223373,1762344633118,-267.73771526,0.00017722,2]
[393223374,1762344633130,-3366.39007696,0.00017722,2]
[393223375,1762344633142,-1505.60249783,0.00017722,2]
[393223376,1762344633154,-267.73771526,0.00017744,2]
[393223377,1762344633167,-3366.39007696,0.00017744,2]
[393223378,1762344633179,-1505.60249783,0.00017744,2]
[393223379,1762344633192,-267.73771526,0.00017767,2]
[393223380,1762344633204,-183.99224359,0.00017767,2]
[393223382,1762344633216,-3366.39007696,0.00017767,2]
[393223384,1762344633228,-1505.60249783,0.00017767,2]
[393223385,1762344633240,-150.0,0.00017787,2]
[393223386,1762344633256,-267.73771526,0.00017789,2]
[393223387,1762344633269,-3366.39007696,0.00017789,2]
[393223388,1762344633285,-1505.60249783,0.00017789,2]
[393223389,1762344633299,-163.3,0.0001779,2]
[393223390,1762344633309,-500.0,0.00017799,2]
[393223391,1762344633568,-500.0,0.00017799,2]
[393223392,1762344633598,-500.0,0.00017799,2]
[393223393,1762344633612,-500.0,0.00017799,2]
[393223394,1762344633622,-500.0,0.00017799,2]
[393223395,1762344633631,-500.0,0.00017799,2]
[393223396,1762344633640,-500.0,0.00017799,2]
[393223397,1762344633649,-500.0,0.00017799,2]
[393223398,1762344633659,-500.0,0.00017799,2]
[393223399,1762344633668,-500.0,0.00017799,2]
[393223400,1762344633677,-500.0,0.00017799,2]
[393223401,1762344633689,-500.0,0.00017799,2]
[393223402,1762344633699,-2708.14392444,0.000178,2]
[393223403,1762344633708,-45417.36529206,0.000178,2]
[393223404,1762344633721,-780.43122511,0.000178,2]
[393223405,1762344633732,-18820.82235603,0.000178,2]
[393223406,1762344633743,-1455.53793476,0.000178,2]
[393223407,1762344633754,-717.99160486,0.000178,2]
[393223408,1762344633766,-2443.41629872,0.000178,2]
[393223409,1762344633776,-334.33830891,0.000178,2]
[393223410,1762344633787,-12280.80958454,0.000178,2]
[393223411,1762344633798,-977.3327285,0.000178,2]
[393223416,1762344638188,-18296.28865786,0.000178,2]
[393223418,1762344638200,-8642.64960966,0.000178,2]
[393223419,1762344638244,-359.875385,0.000178,2]
[393223420,1762344638256,-639.124615,0.000178,2]
[393223421,1762344638299,-336.96722779,0.000178,2]
[393223422,1762344638461,-409.4016062,0.000178,2]
[393223439,1762344640255,-7791.39999997,0.000178,2]
[393223440,1762344640267,-712.4155978,0.000178,2]
[393223445,1762344641063,-1.7e-07,0.000178,2]
[393223446,1762344641840,-299583.83196706,0.000178,2]
[393223447,1762344641850,-1000.0,0.000178,2]
[393223448,1762344641860,-5052.6671066,0.000178,2]
[393223449,1762344641869,-151.0,0.000178,2]
[393223450,1762344641879,-580.67649002,0.000178,2]
[393223451,1762344641888,-267.73771526,0.00017811,2]
[393223452,1762344641897,-3366.39007696,0.00017811,2]
[393223453,1762344641907,-1505.60249783,0.00017811,2]
[393223454,1762344641916,-362.4924,0.0001782,2]
[393223455,1762344641925,-1000.0,0.00017821,2]
[393223456,1762344642164,-182.109,0.00017833,2]
[393223457,1762344642175,-2050.46,0.00017833,2]
[393223458,1762344642184,-267.73771526,0.00017833,2]
[393223459,1762344642195,-183.99224359,0.00017833,2]
[393223460,1762344642204,-3366.39007696,0.00017833,2]
[393223461,1762344642214,-1505.60249783,0.00017833,2]
[393223462,1762344642223,-574.0,0.00017836,2]
[393223463,1762344642232,-607.0,0.00017836,2]
[393223464,1762344642245,-820.0,0.00017836,2]
[393223465,1762344642254,-1595.0,0.00017836,2]
[393223466,1762344642264,-1272.0,0.00017836,2]
[393223467,1762344642274,-812.0,0.00017836,2]
[393223468,1762344642283,-267.73771526,0.00017856,2]
[393223469,1762344642293,-3366.39007696,0.00017856,2]
[393223470,1762344642302,-1505.60249783,0.00017856,2]
[393223471,1762344642314,-200.0,0.00017856,2]
[393223472,1762344642324,-162.12037659,0.00017869,2]
[393223473,1762344642334,-267.73771526,0.00017878,2]
[393223474,1762344642343,-3366.39007696,0.00017878,2]
[393223475,1762344642352,-1505.60249783,0.00017878,2]
[393223476,1762344642361,-1425.0,0.00017888,2]
[393223477,1762344642370,-1425.0,0.00017893,2]
[393223478,1762344642379,-606.26233104,0.00017898,2]
[393223479,1762344642388,-5000.0,0.00017898,2]
[393223480,1762344642397,-500.0,0.00017899,2]
[393223481,1762344642406,-500.0,0.00017899,2]
[393223482,1762344642415,-641.3407631,0.00017899,2]
[393223483,1762344642424,-606.26233103,0.00017899,2]
[393223484,1762344642433,-421.79247152,0.000179,2]
[393223485,1762344642443,-239.56426196,0.000179,2]
[393223486,1762344642452,-1509.40944706,0.000179,2]
[393223487,1762344642461,-267.73771526,0.000179,2]
[393223488,1762344642470,-216.65181743,0.000179,3]
[393223489,1762344642479,-183.99224359,0.000179,2]
[393223490,1762344642488,-176.32783694,0.000179,2]
[393223491,1762344642497,-3366.39007696,0.000179,2]
[393223492,1762344642507,-1223.90435123,0.000179,3]
[393223493,1762344642517,-609.66848506,0.000179,2]
[393223494,1762344642527,-1505.60249783,0.000179,2]
[393223495,1762344642539,-201.97339642,0.000179,2]
[393223496,1762344642548,-606.26233103,0.000179,2]
[393223497,1762344642557,-5448.52839387,0.000179,2]
[393223498,1762344642568,-362.49241,0.0001793,2]
[393223499,1762344642576,-210.0,0.00017941,2]
[393223500,1762344642586,-560.927,0.00017952,2]
[393223501,1762344642595,-6473.0,0.00017952,2]
[393223502,1762344642604,-2141.0,0.00017952,2]
[393223503,1762344642613,-6664.249,0.00017952,2]
[393223504,1762344642623,-539.37,0.00017963,2]
[393223505,1762344642632,-500.0,0.00017969,2]
[393223506,1762344642641,-330.09,0.00017969,2]
[393223507,1762344642650,-500.0,0.0001797,2]
[393223508,1762344642659,-500.0,0.0001797,2]
[393223509,1762344642668,-1000.0,0.0001797,2]
[393223510,1762344642677,-500.0,0.0001797,2]
[393223511,1762344642687,-500.0,0.0001797,2]
[393223512,1762344642699,-1000.0,0.0001797,2]
[393223513,1762344642709,-500.0,0.0001797,2]
[393223514,1762344642718,-1000.0,0.0001797,2]
[393223515,1762344642727,-500.0,0.0001797,2]
[393223516,1762344642736,-1000.0,0.0001797,2]
[393223517,1762344642745,-800.63275327,0.0001797,2]
[393223518,1762344642755,-1000.0,0.0001797,2]
[393223519,1762344642763,-1000.0,0.0001797,2]
[393223520,1762344642772,-1000.0,0.0001797,2]
[393223521,1762344642782,-1000.0,0.0001797,2]
[393223522,1762344642792,-1000.0,0.0001797,2]
[393223523,1762344642801,-1275.49060352,0.0001797,2]
[393223524,1762344642811,-1000.0,0.0001797,2]
[393223525,1762344642820,-500.0,0.0001797,2]
[393223526,1762344642829,-184.0,0.00017973,2]
[393223527,1762344642839,-160.4752958,0.00017973,2]
[393223528,1762344642848,-618.2018509,0.00017973,2]
[393223529,1762344642857,-500.0,0.00017973,2]
[393223530,1762344642866,-500.0,0.00017973,2]
[393223531,1762344642875,-500.0,0.00017973,2]
[393223532,1762344642884,-605.78717603,0.00017973,2]
[393223533,1762344642893,-500.0,0.00017973,2]
[393223534,1762344642903,-500.0,0.00017973,2]
[393223535,1762344642913,-500.0,0.00017973,2]
[393223536,1762344642923,-500.0,0.00017973,2]
[393223537,1762344642932,-500.0,0.00017973,2]
[393223538,1762344642942,-500.0,0.00017973,2]
[393223539,1762344642951,-500.0,0.00017973,2]
[393223540,1762344642961,-500.31544654,0.00017973,2]
[393223541,1762344642970,-500.0,0.00017973,2]
[393223542,1762344642979,-500.0,0.00017973,2]
[393223543,1762344642988,-2446.0,0.00017975,2]
[393223544,1762344642999,-2446.0,0.00017981,2]
[393223546,1762344643008,-163.3,0.00017988,2]
[393223547,1762344643017,-500.0,0.00017989,2]
[393223548,1762344643026,-150.0,0.00017989,2]
[393223549,1762344643035,-150.0,0.00017989,2]
[393223550,1762344643046,-158.86102011,0.00017989,2]
[393223551,1762344643057,-150.0,0.00017989,2]
[393223552,1762344643066,-399.20805107,0.00017989,2]
[393223554,1762344643076,-500.0,0.00017989,2]
[393223556,1762344643088,-150.0,0.00017989,2]
[393223558,1762344643098,-150.0,0.00017989,2]
[393223559,1762344643107,-150.0,0.00017989,2]
[393223560,1762344643116,-150.0,0.00017989,2]
[393223562,1762344643126,-500.0,0.00017989,2]
[393223563,1762344643135,-500.0,0.00017989,2]
[393223564,1762344643144,-150.0,0.00017989,2]
[393223565,1762344643153,-150.0,0.00017989,2]
[393223566,1762344643162,-500.0,0.00017989,2]
[393223568,1762344643172,-500.0,0.00017989,2]
[393223569,1762344643181,-435.0,0.00017989,2]
[393223570,1762344643192,-150.0,0.00017989,2]
[393223571,1762344643200,-217.3955486,0.00017989,2]
[393223572,1762344643211,-150.0,0.00017989,2]
[393223573,1762344643220,-150.0,0.00017989,2]
[393223575,1762344643229,-151.13904288,0.00017989,2]
[393223578,1762344643238,-150.0,0.00017989,2]
[393223579,1762344643248,-150.0,0.00017989,2]
[393223580,1762344643257,-150.0,0.00017989,2]
[393223581,1762344643266,-150.0,0.00017989,2]
[393223582,1762344643275,-150.0,0.00017989,2]
[393223583,1762344643284,-154.26057965,0.00017989,2]
[393223584,1762344643295,-1184.8550871,0.0001799,2]
[393223585,1762344643305,-1184.8550871,0.0001799,2]
[393223586,1762344643316,-1184.8550871,0.0001799,2]
[393223587,1762344643326,-163.3,0.0001799,2]
[393223588,1762344643335,-163.3,0.0001799,2]
[393223589,1762344643344,-500.0,0.00017991,2]
[393223590,1762344643353,-300.0,0.00017992,2]
[393223591,1762344643362,-250.0,0.00017992,2]
[393223592,1762344643371,-151.0,0.00017995,2]
[393223593,1762344643380,-471.73693659,0.00017997,2]
[393223594,1762344643389,-177.27111881,0.00017997,2]
[393223595,1762344643400,-500.0,0.00017997,2]
[393223596,1762344643409,-500.0,0.00017997,2]
[393223597,1762344643418,-500.0,0.00017997,2]
[393223598,1762344643427,-189.37905884,0.00017997,2]
[393223599,1762344643436,-500.0,0.00017997,2]
[393223600,1762344643446,-500.0,0.00017997,2]
[393223601,1762344643455,-508.53712032,0.00017997,2]
[393223602,1762344643464,-500.0,0.00017997,2]
[393223603,1762344643473,-500.0,0.00017997,2]
[393223604,1762344643482,-500.0,0.00017997,2]
[393223605,1762344643491,-151.0,0.00017997,2]
[393223606,1762344643500,-157551.4731931,0.00017998,2]
[393223607,1762344643510,-10017.8421778,0.00017998,2]
[393223608,1762344643521,-44558.9826769,0.00017998,2]
[393223609,1762344643533,-500.0,0.00017998,2]
[393223610,1762344643543,-41624.7930434,0.00017999,2]
[393223611,1762344643552,-2704.8280819,0.00017999,2]
[393223612,1762344643562,-300.0,0.00017999,2]
[393223613,1762344643571,-666.0,0.00017999,2]
[393223614,1762344643580,-1000.0,0.00017999,2]
[393223615,1762344643589,-500.0,0.00017999,2]
[393223616,1762344643599,-514.42463678,0.00017999,2]
[393223617,1762344643609,-300.0,0.00017999,2]
[393223618,1762344643618,-226.71413784,0.00017999,2]
[393223619,1762344643627,-500.0,0.00017999,2]
[393223620,1762344643637,-500.0,0.00017999,2]
[393223621,1762344643646,-266.17310046,0.00017999,2]
[393223622,1762344643655,-1000.0,0.00017999,2]
[393223623,1762344643664,-300.0,0.00017999,2]
[393223624,1762344643674,-666.0,0.00017999,2]
[393223625,1762344643683,-500.0,0.00017999,2]
[393223626,1762344643692,-500.0,0.00017999,2]
[393223627,1762344643701,-500.0,0.00017999,2]
[393223628,1762344643710,-500.0,0.00017999,2]
[393223629,1762344643719,-500.0,0.00017999,2]
[393223630,1762344643728,-500.0,0.00017999,2]
[393223631,1762344643737,-500.0,0.00017999,2]
[393223632,1762344643746,-500.0,0.00017999,2]
[393223633,1762344643755,-629.55401535,0.00017999,2]
[393223634,1762344643764,-300.0,0.00017999,2]
[393223635,1762344643773,-666.0,0.00017999,2]
[393223636,1762344643783,-4167.0,0.00018,2]
[393223637,1762344643793,-725.0,0.00018,2]
[393223638,1762344643802,-2574860.92515955,0.00018,2]
[393223639,1762344643819,-5252.0317327,0.00018,2]
[393223640,1762344643830,-5994.95987997,0.00018,2]
[393223641,1762344643841,-511.05,0.00018,2]
[393223643,1762344643990,-306.98412139,0.00016438,2]
[393223644,1762344644000,-500.0,0.00017989,2]
[393223645,1762344644010,-150.0,0.00017989,2]
[393223646,1762344644019,-1472644.03586399,0.00018,2]
[393223647,1762344644121,-725.84561252,0.00017963,2]
[393223648,1762344644131,-556048.87321998,0.00018,2]
[393223655,1762344646451,-500.0,0.00017989,2]
[393223656,1762344646461,-846.81988127,0.00017999,2]
[393223657,1762344646471,-151.0,0.00017999,2]
[393223658,1762344646479,-2396.13239233,0.00018,2]
[393223661,1762344796480,-319.24702903,0.00016356,2]
[393223662,1762344798614,-163.17364343,0.00016356,2]
[393223670,1762345021467,-17.57932754,0.00016356,2]
[393223671,1762345021490,-212.84692216,0.00016593,2]
[393223673,1762345066505,-202.54514099,0.00016593,2]
[393223674,1762345097022,-166.66,0.00016509,2]
[393223675,1762345101435,-300.0,0.00016509,2]
[393223676,1762345102940,-238.07538416,0.00016509,2]
[393223677,1762345105096,-168.0,0.00016509,2]
[393223678,1762345107762,-195.0,0.00016509,2]
[393223679,1762345141467,-179.948,0.00016356,2]
[393223680,1762345186743,-71.86338216,0.00016356,2]
[393223681,1762345186765,-11.08166484,0.00016509,2]
[393223682,1762345186788,-15.43650272,0.00016593,2]